[Event "Titled Tuesday Blitz January 17 Early 2023"]
[White "Reprintsev, Alexander"]
[Black "Maksimenko, Viktor"]
[WhiteFideId "14100541"]
[BlackFideId "13710478"]
[WhiteElo "2253"]
[BlackElo "2196"]
[Result "1-0"]
[Round "10"]
[TimeControl "180+2"]
[Date "2023.01.17"]
[WhiteClock "0:00:29"]
[BlackClock "0:00:44"]

1. e4 {[%clk 0:03:00]}  e5 {[%clk 0:02:59]} 2. Nf3 {[%clk 0:02:59]}  Nc6 {[%clk 0:02:59]} 3. Bc4 {[%clk 0:02:59]}  Nf6 {[%clk 0:02:58]} 4. Ng5 {[%clk 0:02:58]}  d5 {[%clk 0:02:58]} 5. exd5 {[%clk 0:02:58]}  Na5 {[%clk 0:02:59]} 6. Bb5+ {[%clk 0:02:58]}  c6 {[%clk 0:02:59]} 7. dxc6 {[%clk 0:02:58]}  bxc6 {[%clk 0:03:00]} 8. Bd3 {[%clk 0:02:58]}  Nd5 {[%clk 0:02:54]} 9. h4 {[%clk 0:02:33]}  h6 {[%clk 0:02:44]} 10. Qh5 {[%clk 0:02:30]}  Qf6 {[%clk 0:02:44]} 11. Nh7 {[%clk 0:02:28]}  Rxh7 {[%clk 0:02:41]} 12. Bxh7 {[%clk 0:02:28]}  g6 {[%clk 0:02:42]} 13. Qe2 {[%clk 0:02:08]}  Nf4 {[%clk 0:02:41]} 14. Qf3 {[%clk 0:02:00]}  Bb7 {[%clk 0:02:41]} 15. Nc3 {[%clk 0:01:55]}  c5 {[%clk 0:02:41]} 16. Ne4 {[%clk 0:01:55]}  Qg7 {[%clk 0:02:41]} 17. g3 {[%clk 0:01:55]}  f5 {[%clk 0:02:24]} 18. gxf4 {[%clk 0:01:46]}  Bxe4 {[%clk 0:02:22]} 19. Qc3 {[%clk 0:01:44]}  Qxh7 {[%clk 0:02:18]} 20. f3 {[%clk 0:01:39]}  Nc6 {[%clk 0:02:03]} 21. fxe4 {[%clk 0:01:38]}  exf4 {[%clk 0:01:56]} 22. d3 {[%clk 0:01:37]}  fxe4 {[%clk 0:01:54]} 23. Bxf4 {[%clk 0:01:36]}  O-O-O {[%clk 0:01:45]} 24. O-O-O {[%clk 0:01:32]}  Qf7 {[%clk 0:01:42]} 25. Rhf1 {[%clk 0:01:04]}  Nb4 {[%clk 0:01:38]} 26. Qc4 {[%clk 0:00:41]}  Nxa2+ {[%clk 0:00:53]} 27. Kb1 {[%clk 0:00:40]}  Qxc4 {[%clk 0:00:54]} 28. dxc4 {[%clk 0:00:40]}  Nb4 {[%clk 0:00:55]} 29. Rxd8+ {[%clk 0:00:39]}  Kxd8 {[%clk 0:00:56]} 30. Rg1 {[%clk 0:00:34]}  Be7 {[%clk 0:00:44]} 31. Rxg6 {[%clk 0:00:32]}  Bxh4 {[%clk 0:00:44]} 32. Rxh6 {[%clk 0:00:31]}  Bf2 {[%clk 0:00:44]} 33. Re6 {[%clk 0:00:29]} 1-0


[Site "https://www.chess.com"]

[Event "Titled Tuesday Blitz January 17 Early 2023"]
[White "sabkeIXO"]
[Black "Tologon tegin, Semetei"]
[BlackFideId "13800574"]
[WhiteElo "2481"]
[BlackElo "2372"]
[Result "1-0"]
[Round "10"]
[TimeControl "180+2"]
[Date "2023.01.17"]
[WhiteClock "0:01:26"]
[BlackClock "0:00:16"]

1. e4 {[%clk 0:03:00]}  e5 {[%clk 0:02:56]} 2. Nf3 {[%clk 0:02:59]}  Nc6 {[%clk 0:02:55]} 3. d4 {[%clk 0:03:00]}  exd4 {[%clk 0:02:55]} 4. Bc4 {[%clk 0:02:59]}  Nf6 {[%clk 0:02:53]} 5. e5 {[%clk 0:02:58]}  d5 {[%clk 0:02:53]} 6. Bb5 {[%clk 0:02:58]}  Ne4 {[%clk 0:02:52]} 7. Nxd4 {[%clk 0:02:58]}  Bd7 {[%clk 0:02:51]} 8. Bxc6 {[%clk 0:02:57]}  bxc6 {[%clk 0:02:51]} 9. O-O {[%clk 0:02:57]}  Be7 {[%clk 0:02:47]} 10. f3 {[%clk 0:02:57]}  Ng5 {[%clk 0:02:46]} 11. f4 {[%clk 0:02:58]}  Ne4 {[%clk 0:02:45]} 12. Nc3 {[%clk 0:02:57]}  Nxc3 {[%clk 0:02:40]} 13. bxc3 {[%clk 0:02:58]}  c5 {[%clk 0:02:40]} 14. Nb3 {[%clk 0:02:57]}  c6 {[%clk 0:02:35]} 15. f5 {[%clk 0:02:45]}  g6 {[%clk 0:02:25]} 16. f6 {[%clk 0:02:35]}  Bf8 {[%clk 0:02:24]} 17. Be3 {[%clk 0:02:34]}  c4 {[%clk 0:02:22]} 18. Nd4 {[%clk 0:02:14]}  c5 {[%clk 0:02:22]} 19. Nf3 {[%clk 0:02:09]}  Be6 {[%clk 0:02:18]} 20. Ng5 {[%clk 0:02:01]}  Qd7 {[%clk 0:02:16]} 21. Rb1 {[%clk 0:01:59]}  Bh6 {[%clk 0:02:14]} 22. Qd2 {[%clk 0:01:47]}  Rc8 {[%clk 0:02:13]} 23. Nxe6 {[%clk 0:01:44]}  Bxe3+ {[%clk 0:02:11]} 24. Qxe3 {[%clk 0:01:44]}  Qxe6 {[%clk 0:02:03]} 25. Rb7 {[%clk 0:01:43]}  Qg4 {[%clk 0:00:25]} 26. Re7+ {[%clk 0:01:38]}  Kd8 {[%clk 0:00:22]} 27. h3 {[%clk 0:01:27]}  Qe4 {[%clk 0:00:16]} 28. Qxe4 {[%clk 0:01:26]} 1-0


[Site "https://www.chess.com"]

[Event "Titled Tuesday Blitz January 17 Early 2023"]
[White "Kukula, Pawel"]
[Black "Fernandez Garcia, Gumersindo"]
[WhiteFideId "1115081"]
[BlackFideId "24516740"]
[WhiteElo "2135"]
[BlackElo "2160"]
[Result "0-1"]
[Round "10"]
[TimeControl "180+2"]
[Date "2023.01.17"]
[WhiteClock "0:00:02"]
[BlackClock "0:00:03"]

1. e4 {[%clk 0:03:00]}  c5 {[%clk 0:01:50]} 2. Nf3 {[%clk 0:02:59]}  g6 {[%clk 0:01:50]} 3. g3 {[%clk 0:02:58]}  Bg7 {[%clk 0:01:50]} 4. Bg2 {[%clk 0:02:58]}  Nc6 {[%clk 0:01:50]} 5. O-O {[%clk 0:02:59]}  d6 {[%clk 0:01:51]} 6. c3 {[%clk 0:02:56]}  Bg4 {[%clk 0:01:50]} 7. d3 {[%clk 0:02:50]}  e5 {[%clk 0:01:50]} 8. h3 {[%clk 0:02:49]}  Bxf3 {[%clk 0:01:49]} 9. Bxf3 {[%clk 0:02:48]}  Nge7 {[%clk 0:01:50]} 10. a4 {[%clk 0:02:47]}  O-O {[%clk 0:01:50]} 11. Na3 {[%clk 0:02:46]}  f5 {[%clk 0:01:50]} 12. Nc4 {[%clk 0:02:36]}  f4 {[%clk 0:01:49]} 13. Kg2 {[%clk 0:02:28]}  g5 {[%clk 0:01:45]} 14. g4 {[%clk 0:02:15]}  Ng6 {[%clk 0:01:45]} 15. Nd2 {[%clk 0:01:55]}  Nh4+ {[%clk 0:01:43]} 16. Kh2 {[%clk 0:01:55]}  Qd7 {[%clk 0:01:44]} 17. Be2 {[%clk 0:01:51]}  Ne7 {[%clk 0:01:30]} 18. a5 {[%clk 0:01:39]}  Neg6 {[%clk 0:01:30]} 19. b4 {[%clk 0:01:29]}  Kh8 {[%clk 0:01:10]} 20. Bb2 {[%clk 0:01:09]}  Rf7 {[%clk 0:01:06]} 21. Ba3 {[%clk 0:01:02]}  f3 {[%clk 0:01:00]} 22. Nxf3 {[%clk 0:00:52]}  Nxf3+ {[%clk 0:01:00]} 23. Bxf3 {[%clk 0:00:53]}  Raf8 {[%clk 0:01:00]} 24. Bg2 {[%clk 0:00:51]}  Rxf2 {[%clk 0:00:59]} 25. Rxf2 {[%clk 0:00:50]}  Rxf2 {[%clk 0:01:00]} 26. Qb1 {[%clk 0:00:37]}  Qf7 {[%clk 0:00:55]} 27. Qg1 {[%clk 0:00:29]}  Nh4 {[%clk 0:00:47]} 28. Rf1 {[%clk 0:00:28]}  Qf4+ {[%clk 0:00:41]} 29. Kh1 {[%clk 0:00:27]}  Rxf1 {[%clk 0:00:34]} 30. Qxf1 {[%clk 0:00:27]}  Qe3 {[%clk 0:00:20]} 31. bxc5 {[%clk 0:00:20]}  dxc5 {[%clk 0:00:21]} 32. Bc1 {[%clk 0:00:20]}  Qg3 {[%clk 0:00:18]} 33. Bxg5 {[%clk 0:00:15]}  Nxg2 {[%clk 0:00:19]} 34. Qxg2 {[%clk 0:00:13]}  Qxd3 {[%clk 0:00:19]} 35. Bd2 {[%clk 0:00:09]}  c4 {[%clk 0:00:19]} 36. Kg1 {[%clk 0:00:06]}  b5 {[%clk 0:00:18]} 37. axb6 {[%clk 0:00:04]}  axb6 {[%clk 0:00:18]} 38. Qf2 {[%clk 0:00:04]}  b5 {[%clk 0:00:17]} 39. Qe3 {[%clk 0:00:02]}  Qc2 {[%clk 0:00:09]} 40. Kg2 {[%clk 0:00:02]}  h6 {[%clk 0:00:10]} 41. Kg3 {[%clk 0:00:02]}  Kh7 {[%clk 0:00:09]} 42. h4 {[%clk 0:00:02]}  Qd1 {[%clk 0:00:07]} 43. g5 {[%clk 0:00:02]}  h5 {[%clk 0:00:06]} 44. g6+ {[%clk 0:00:02]}  Kxg6 {[%clk 0:00:06]} 45. Qg5+ {[%clk 0:00:02]}  Kh7 {[%clk 0:00:07]} 46. Qf5+ {[%clk 0:00:03]}  Kg8 {[%clk 0:00:07]} 47. Qc8+ {[%clk 0:00:03]}  Kf7 {[%clk 0:00:06]} 48. Qf5+ {[%clk 0:00:04]}  Ke7 {[%clk 0:00:07]} 49. Bg5+ {[%clk 0:00:04]}  Ke8 {[%clk 0:00:05]} 50. Qg6+ {[%clk 0:00:04]}  Kf8 {[%clk 0:00:05]} 51. Qf5+ {[%clk 0:00:04]}  Kg8 {[%clk 0:00:05]} 52. Qe6+ {[%clk 0:00:03]}  Kh8 {[%clk 0:00:03]} 53. Qe8+ {[%clk 0:00:01]}  Kh7 {[%clk 0:00:04]} 54. Qxh5+ {[%clk 0:00:02]}  Qxh5 {[%clk 0:00:03]} 0-1


[Site "https://www.chess.com"]

[Event "Titled Tuesday Blitz January 17 Early 2023"]
[White "Martynov, Pavel"]
[Black "Becerra, Juan David"]
[WhiteFideId "4101260"]
[BlackFideId "4404998"]
[WhiteElo "2414"]
[BlackElo "2382"]
[Result "1-0"]
[Round "10"]
[TimeControl "180+2"]
[Date "2023.01.17"]
[WhiteClock "0:00:07"]
[BlackClock "0:00:12"]

1. e4 {[%clk 0:02:59]}  e5 {[%clk 0:02:59]} 2. Nf3 {[%clk 0:02:59]}  Nc6 {[%clk 0:02:59]} 3. Bb5 {[%clk 0:02:59]}  a6 {[%clk 0:03:00]} 4. Ba4 {[%clk 0:02:59]}  f5 {[%clk 0:03:00]} 5. Nc3 {[%clk 0:02:47]}  fxe4 {[%clk 0:02:37]} 6. Nxe4 {[%clk 0:02:37]}  Nf6 {[%clk 0:02:24]} 7. Qe2 {[%clk 0:02:37]}  b5 {[%clk 0:02:19]} 8. Bb3 {[%clk 0:02:36]}  d6 {[%clk 0:02:19]} 9. d3 {[%clk 0:02:36]}  Na5 {[%clk 0:02:19]} 10. Bg5 {[%clk 0:02:35]}  Nxb3 {[%clk 0:02:19]} 11. axb3 {[%clk 0:02:34]}  Be7 {[%clk 0:02:19]} 12. h4 {[%clk 0:02:20]}  Be6 {[%clk 0:02:03]} 13. h5 {[%clk 0:02:16]}  h6 {[%clk 0:02:00]} 14. Be3 {[%clk 0:02:08]}  Nxe4 {[%clk 0:01:56]} 15. dxe4 {[%clk 0:02:08]}  O-O {[%clk 0:01:56]} 16. Qd2 {[%clk 0:01:50]}  c5 {[%clk 0:01:49]} 17. b4 {[%clk 0:01:22]}  Qc7 {[%clk 0:01:41]} 18. Nh4 {[%clk 0:01:15]}  Bxh4 {[%clk 0:01:36]} 19. Rxh4 {[%clk 0:01:13]}  cxb4 {[%clk 0:01:36]} 20. Qxb4 {[%clk 0:01:03]}  Qxc2 {[%clk 0:01:13]} 21. Rc1 {[%clk 0:01:03]}  Qd3 {[%clk 0:01:13]} 22. Rd1 {[%clk 0:00:58]}  Qc4 {[%clk 0:01:12]} 23. Qxc4 {[%clk 0:00:54]}  Bxc4 {[%clk 0:01:12]} 24. Rxd6 {[%clk 0:00:53]}  Rfd8 {[%clk 0:01:12]} 25. Rb6 {[%clk 0:00:50]}  Rdb8 {[%clk 0:01:09]} 26. Rg6 {[%clk 0:00:47]}  Kh7 {[%clk 0:00:58]} 27. Rhg4 {[%clk 0:00:41]}  Rb7 {[%clk 0:00:58]} 28. f3 {[%clk 0:00:30]}  a5 {[%clk 0:00:58]} 29. Rb6 {[%clk 0:00:19]}  Rxb6 {[%clk 0:00:54]} 30. Bxb6 {[%clk 0:00:20]}  Bf7 {[%clk 0:00:53]} 31. Bc7 {[%clk 0:00:17]}  Bxh5 {[%clk 0:00:50]} 32. Rh4 {[%clk 0:00:17]}  Bf7 {[%clk 0:00:47]} 33. Bxe5 {[%clk 0:00:18]}  b4 {[%clk 0:00:48]} 34. Rg4 {[%clk 0:00:17]}  g5 {[%clk 0:00:48]} 35. f4 {[%clk 0:00:17]}  Kg6 {[%clk 0:00:48]} 36. f5+ {[%clk 0:00:16]}  Kh7 {[%clk 0:00:45]} 37. Rg3 {[%clk 0:00:15]}  a4 {[%clk 0:00:45]} 38. Bd6 {[%clk 0:00:15]}  a3 {[%clk 0:00:36]} 39. bxa3 {[%clk 0:00:15]}  b3 {[%clk 0:00:37]} 40. Kd2 {[%clk 0:00:12]}  Rc8 {[%clk 0:00:34]} 41. Be5 {[%clk 0:00:10]}  Re8 {[%clk 0:00:31]} 42. Bb2 {[%clk 0:00:08]}  Rxe4 {[%clk 0:00:32]} 43. Re3 {[%clk 0:00:07]}  Rf4 {[%clk 0:00:31]} 44. Rf3 {[%clk 0:00:05]}  Rc4 {[%clk 0:00:31]} 45. Rc3 {[%clk 0:00:05]}  Rg4 {[%clk 0:00:32]} 46. Rc7 {[%clk 0:00:05]}  Rxg2+ {[%clk 0:00:32]} 47. Kc1 {[%clk 0:00:04]}  Rc2+ {[%clk 0:00:24]} 48. Rxc2 {[%clk 0:00:05]}  bxc2 {[%clk 0:00:25]} 49. Kxc2 {[%clk 0:00:06]}  Bd5 {[%clk 0:00:24]} 50. Kd3 {[%clk 0:00:06]}  Ba2 {[%clk 0:00:24]} 51. Kd4 {[%clk 0:00:06]}  h5 {[%clk 0:00:23]} 52. Ke5 {[%clk 0:00:06]}  h4 {[%clk 0:00:23]} 53. Kf6 {[%clk 0:00:06]}  g4 {[%clk 0:00:22]} 54. Kg5 {[%clk 0:00:06]}  g3 {[%clk 0:00:23]} 55. Kxh4 {[%clk 0:00:06]}  g2 {[%clk 0:00:23]} 56. Bd4 {[%clk 0:00:06]}  Bb1 {[%clk 0:00:23]} 57. Kg5 {[%clk 0:00:07]}  Kg8 {[%clk 0:00:22]} 58. a4 {[%clk 0:00:07]}  Bd3 {[%clk 0:00:21]} 59. Kf6 {[%clk 0:00:06]}  Kf8 {[%clk 0:00:21]} 60. a5 {[%clk 0:00:06]}  Ba6 {[%clk 0:00:21]} 61. Ke6 {[%clk 0:00:06]}  Bc8+ {[%clk 0:00:20]} 62. Kf6 {[%clk 0:00:06]}  Ba6 {[%clk 0:00:20]} 63. Bc5+ {[%clk 0:00:06]}  Kg8 {[%clk 0:00:20]} 64. Ke7 {[%clk 0:00:07]}  Bc4 {[%clk 0:00:12]} 65. f6 {[%clk 0:00:07]} 1-0


[Site "https://www.chess.com"]

[Event "Titled Tuesday Blitz January 17 Early 2023"]
[White "Sielecki, Christof"]
[Black "Tokhirjonova, Gulrukhbegim"]
[WhiteFideId "4620437"]
[BlackFideId "14203626"]
[WhiteElo "2419"]
[BlackElo "2340"]
[Result "1-0"]
[Round "10"]
[TimeControl "180+2"]
[Date "2023.01.17"]
[WhiteClock "0:00:25"]
[BlackClock "0:00:17"]

1. e4 {[%clk 0:02:57]}  e5 {[%clk 0:02:59]} 2. Nf3 {[%clk 0:02:55]}  Nc6 {[%clk 0:02:59]} 3. Bb5 {[%clk 0:02:54]}  a6 {[%clk 0:02:58]} 4. Ba4 {[%clk 0:02:55]}  Nf6 {[%clk 0:02:59]} 5. d3 {[%clk 0:02:55]}  b5 {[%clk 0:02:58]} 6. Bb3 {[%clk 0:02:54]}  Bc5 {[%clk 0:02:59]} 7. Nc3 {[%clk 0:02:54]}  O-O {[%clk 0:02:59]} 8. Nd5 {[%clk 0:02:53]}  h6 {[%clk 0:02:51]} 9. c3 {[%clk 0:02:53]}  d6 {[%clk 0:02:51]} 10. Nxf6+ {[%clk 0:02:54]}  Qxf6 {[%clk 0:02:49]} 11. Bd5 {[%clk 0:02:54]}  Bb7 {[%clk 0:02:50]} 12. g4 {[%clk 0:02:53]}  Rae8 {[%clk 0:02:25]} 13. g5 {[%clk 0:02:51]}  hxg5 {[%clk 0:02:24]} 14. Bxg5 {[%clk 0:02:52]}  Qg6 {[%clk 0:02:24]} 15. Rg1 {[%clk 0:02:45]}  Qh5 {[%clk 0:02:23]} 16. Bf6 {[%clk 0:02:30]}  g6 {[%clk 0:02:22]} 17. Rg5 {[%clk 0:02:24]}  Qh6 {[%clk 0:02:14]} 18. Rg4 {[%clk 0:02:19]}  Nd8 {[%clk 0:01:30]} 19. Rh4 {[%clk 0:02:12]}  Qxh4 {[%clk 0:01:27]} 20. Nxh4 {[%clk 0:02:08]}  c6 {[%clk 0:01:19]} 21. Bb3 {[%clk 0:02:08]}  Ne6 {[%clk 0:01:19]} 22. Qg4 {[%clk 0:01:39]}  Kh7 {[%clk 0:01:17]} 23. Nf3 {[%clk 0:01:31]}  Ng7 {[%clk 0:01:13]} 24. Ng5+ {[%clk 0:01:26]}  Kg8 {[%clk 0:01:11]} 25. Bxg7 {[%clk 0:01:03]}  Kxg7 {[%clk 0:01:08]} 26. O-O-O {[%clk 0:00:59]}  d5 {[%clk 0:01:06]} 27. d4 {[%clk 0:00:54]}  Bd6 {[%clk 0:00:50]} 28. f4 {[%clk 0:00:54]}  exd4 {[%clk 0:00:43]} 29. e5 {[%clk 0:00:54]}  Bc8 {[%clk 0:00:34]} 30. Qg3 {[%clk 0:00:54]}  Bc7 {[%clk 0:00:29]} 31. cxd4 {[%clk 0:00:54]}  f6 {[%clk 0:00:29]} 32. Nf3 {[%clk 0:00:50]}  fxe5 {[%clk 0:00:29]} 33. Nxe5 {[%clk 0:00:51]}  Bf5 {[%clk 0:00:29]} 34. Bc2 {[%clk 0:00:50]}  Bxe5 {[%clk 0:00:28]} 35. fxe5 {[%clk 0:00:50]}  Rf7 {[%clk 0:00:24]} 36. Rg1 {[%clk 0:00:47]}  Re6 {[%clk 0:00:23]} 37. Bxf5 {[%clk 0:00:46]}  Rxf5 {[%clk 0:00:24]} 38. h4 {[%clk 0:00:47]}  Kf7 {[%clk 0:00:24]} 39. Qg4 {[%clk 0:00:47]}  Ke7 {[%clk 0:00:23]} 40. a3 {[%clk 0:00:42]}  c5 {[%clk 0:00:20]} 41. dxc5 {[%clk 0:00:41]}  Rfxe5 {[%clk 0:00:21]} 42. Kb1 {[%clk 0:00:41]}  Kd7 {[%clk 0:00:21]} 43. Rf1 {[%clk 0:00:40]}  Kc6 {[%clk 0:00:21]} 44. Qg3 {[%clk 0:00:35]}  a5 {[%clk 0:00:21]} 45. Ka2 {[%clk 0:00:28]}  b4 {[%clk 0:00:21]} 46. Qb3 {[%clk 0:00:27]}  Kxc5 {[%clk 0:00:20]} 47. Rc1+ {[%clk 0:00:25]}  Kb5 {[%clk 0:00:20]} 48. a4+ {[%clk 0:00:25]}  Kb6 {[%clk 0:00:20]} 49. Qd3 {[%clk 0:00:25]}  d4 {[%clk 0:00:17]} 50. Qxd4+ {[%clk 0:00:24]}  Kb7 {[%clk 0:00:16]} 51. Qd7+ {[%clk 0:00:23]}  Kb6 {[%clk 0:00:16]} 52. Qc7+ {[%clk 0:00:24]}  Ka6 {[%clk 0:00:16]} 53. Rc6+ {[%clk 0:00:24]}  Rxc6 {[%clk 0:00:16]} 54. Qxc6+ {[%clk 0:00:25]}  Ka7 {[%clk 0:00:17]} 55. Qc7+ {[%clk 0:00:25]}  Ka6 {[%clk 0:00:17]} 56. Qxe5 {[%clk 0:00:25]} 1-0


[Site "https://www.chess.com"]

[Event "Titled Tuesday Blitz January 17 Early 2023"]
[White "Degenbaev, Aziz"]
[Black "Hirneise, Jens"]
[WhiteFideId "13802640"]
[BlackFideId "24614734"]
[WhiteElo "2203"]
[BlackElo "2277"]
[Result "0-1"]
[Round "10"]
[TimeControl "180+2"]
[Date "2023.01.17"]
[WhiteClock "0:00:01"]
[BlackClock "0:01:14"]

1. e4 {[%clk 0:02:56]}  c5 {[%clk 0:02:59]} 2. Nf3 {[%clk 0:02:56]}  e6 {[%clk 0:03:00]} 3. g3 {[%clk 0:02:56]}  Nc6 {[%clk 0:03:00]} 4. Bg2 {[%clk 0:02:55]}  d5 {[%clk 0:02:59]} 5. exd5 {[%clk 0:02:55]}  Qxd5 {[%clk 0:03:00]} 6. Nc3 {[%clk 0:02:53]}  Qd8 {[%clk 0:03:00]} 7. O-O {[%clk 0:02:53]}  Nf6 {[%clk 0:03:00]} 8. d3 {[%clk 0:02:49]}  Be7 {[%clk 0:03:00]} 9. Qe2 {[%clk 0:02:37]}  O-O {[%clk 0:03:00]} 10. Bf4 {[%clk 0:02:26]}  Bd7 {[%clk 0:02:54]} 11. Rad1 {[%clk 0:02:21]}  Nd4 {[%clk 0:02:54]} 12. Nxd4 {[%clk 0:02:21]}  cxd4 {[%clk 0:02:55]} 13. Ne4 {[%clk 0:02:21]}  Bc6 {[%clk 0:02:54]} 14. Be5 {[%clk 0:02:14]}  Rc8 {[%clk 0:02:49]} 15. f4 {[%clk 0:01:48]}  Nxe4 {[%clk 0:02:43]} 16. dxe4 {[%clk 0:01:40]}  Bc5 {[%clk 0:02:41]} 17. Qc4 {[%clk 0:01:14]}  Qb6 {[%clk 0:02:35]} 18. b4 {[%clk 0:00:38]}  Bxb4 {[%clk 0:02:28]} 19. Bxd4 {[%clk 0:00:37]}  Qb5 {[%clk 0:02:21]} 20. Qb3 {[%clk 0:00:34]}  Bc5 {[%clk 0:02:18]} 21. c3 {[%clk 0:00:31]}  Qa5 {[%clk 0:02:07]} 22. Rb1 {[%clk 0:00:24]}  b6 {[%clk 0:02:04]} 23. Kh1 {[%clk 0:00:21]}  Ba4 {[%clk 0:02:04]} 24. Qb2 {[%clk 0:00:16]}  Rfd8 {[%clk 0:01:57]} 25. Rbc1 {[%clk 0:00:14]}  Qb5 {[%clk 0:01:51]} 26. Qf2 {[%clk 0:00:09]}  Qc4 {[%clk 0:01:49]} 27. Bxc5 {[%clk 0:00:08]}  Rxc5 {[%clk 0:01:50]} 28. f5 {[%clk 0:00:08]}  exf5 {[%clk 0:01:45]} 29. exf5 {[%clk 0:00:09]}  Bc6 {[%clk 0:01:45]} 30. f6 {[%clk 0:00:10]}  g6 {[%clk 0:01:38]} 31. Rcd1 {[%clk 0:00:10]}  Bxg2+ {[%clk 0:01:35]} 32. Qxg2 {[%clk 0:00:10]}  Rcc8 {[%clk 0:01:29]} 33. Rxd8+ {[%clk 0:00:04]}  Rxd8 {[%clk 0:01:29]} 34. Rc1 {[%clk 0:00:05]}  Qe6 {[%clk 0:01:24]} 35. Qf3 {[%clk 0:00:04]}  h6 {[%clk 0:01:21]} 36. Rf1 {[%clk 0:00:02]}  Kh7 {[%clk 0:01:22]} 37. Qf4 {[%clk 0:00:01]}  Qc6+ {[%clk 0:01:19]} 38. Qf3 {[%clk 0:00:02]}  Qc4 {[%clk 0:01:17]} 39. Qf4 {[%clk 0:00:01]}  Qxa2 {[%clk 0:01:16]} 40. Qc7 {[%clk 0:00:02]}  Rd2 {[%clk 0:01:15]} 41. Kg1 {[%clk 0:00:01]}  Rg2+ {[%clk 0:01:14]} 0-1


[Site "https://www.chess.com"]

[Event "Titled Tuesday Blitz January 17 Early 2023"]
[White "Shipov, Sergei"]
[Black "Miszler, Levente"]
[WhiteFideId "4113624"]
[BlackFideId "763276"]
[WhiteElo "2541"]
[BlackElo "2271"]
[Result "1-0"]
[Round "10"]
[TimeControl "180+2"]
[Date "2023.01.17"]
[WhiteClock "0:00:54"]
[BlackClock "0:00:11"]

1. d4 {[%clk 0:03:00]}  d5 {[%clk 0:02:59]} 2. c4 {[%clk 0:03:01]}  c6 {[%clk 0:02:56]} 3. Nc3 {[%clk 0:03:01]}  Nf6 {[%clk 0:02:56]} 4. Nf3 {[%clk 0:03:01]}  e6 {[%clk 0:02:56]} 5. e3 {[%clk 0:03:01]}  Be7 {[%clk 0:02:56]} 6. Bd3 {[%clk 0:03:01]}  O-O {[%clk 0:02:55]} 7. O-O {[%clk 0:03:01]}  dxc4 {[%clk 0:02:53]} 8. Bxc4 {[%clk 0:03:01]}  b5 {[%clk 0:02:54]} 9. Bd3 {[%clk 0:03:01]}  Nbd7 {[%clk 0:02:53]} 10. e4 {[%clk 0:03:01]}  Bb7 {[%clk 0:02:51]} 11. e5 {[%clk 0:03:01]}  Nd5 {[%clk 0:02:47]} 12. Nxd5 {[%clk 0:03:01]}  exd5 {[%clk 0:02:46]} 13. Be3 {[%clk 0:03:01]}  Re8 {[%clk 0:02:35]} 14. Rc1 {[%clk 0:02:59]}  Nf8 {[%clk 0:02:35]} 15. g3 {[%clk 0:02:56]}  Ne6 {[%clk 0:02:35]} 16. h4 {[%clk 0:02:54]}  a6 {[%clk 0:02:35]} 17. Re1 {[%clk 0:02:41]}  c5 {[%clk 0:02:35]} 18. dxc5 {[%clk 0:02:41]}  d4 {[%clk 0:02:26]} 19. Nxd4 {[%clk 0:02:41]}  Qd5 {[%clk 0:02:24]} 20. f3 {[%clk 0:02:19]}  Bxc5 {[%clk 0:02:15]} 21. Be4 {[%clk 0:01:58]}  Qd7 {[%clk 0:02:06]} 22. Nxe6 {[%clk 0:01:57]}  Qxd1 {[%clk 0:01:52]} 23. Rcxd1 {[%clk 0:01:57]}  Bxe3+ {[%clk 0:01:53]} 24. Rxe3 {[%clk 0:01:56]}  Bxe4 {[%clk 0:01:54]} 25. Rxe4 {[%clk 0:01:57]}  Rxe6 {[%clk 0:01:52]} 26. Kf2 {[%clk 0:01:48]}  g6 {[%clk 0:01:46]} 27. g4 {[%clk 0:01:43]}  Rc8 {[%clk 0:01:43]} 28. Rd2 {[%clk 0:01:42]}  f6 {[%clk 0:01:29]} 29. Rde2 {[%clk 0:01:38]}  fxe5 {[%clk 0:01:27]} 30. Rxe5 {[%clk 0:01:39]}  Rxe5 {[%clk 0:01:27]} 31. Rxe5 {[%clk 0:01:39]}  Rc2+ {[%clk 0:01:28]} 32. Re2 {[%clk 0:01:39]}  Rc4 {[%clk 0:01:29]} 33. b3 {[%clk 0:01:38]}  Rc3 {[%clk 0:01:28]} 34. Kg3 {[%clk 0:01:36]}  Kf7 {[%clk 0:01:28]} 35. Kf4 {[%clk 0:01:34]}  h6 {[%clk 0:01:25]} 36. Rd2 {[%clk 0:01:34]}  Ke6 {[%clk 0:01:23]} 37. Ke4 {[%clk 0:01:33]}  a5 {[%clk 0:01:20]} 38. Rd5 {[%clk 0:01:32]}  Rc2 {[%clk 0:01:11]} 39. Rxb5 {[%clk 0:01:32]}  Rxa2 {[%clk 0:01:10]} 40. Rb6+ {[%clk 0:01:32]}  Kf7 {[%clk 0:01:11]} 41. Ke5 {[%clk 0:01:15]}  Re2+ {[%clk 0:01:06]} 42. Kf4 {[%clk 0:01:15]}  Rb2 {[%clk 0:00:59]} 43. h5 {[%clk 0:01:05]}  gxh5 {[%clk 0:00:58]} 44. gxh5 {[%clk 0:01:05]}  a4 {[%clk 0:00:57]} 45. Rxh6 {[%clk 0:01:04]}  Rxb3 {[%clk 0:00:56]} 46. Ra6 {[%clk 0:01:03]}  Rb4+ {[%clk 0:00:55]} 47. Kg5 {[%clk 0:01:04]}  Rb5+ {[%clk 0:00:55]} 48. Kg4 {[%clk 0:01:04]}  Rb4+ {[%clk 0:00:55]} 49. f4 {[%clk 0:01:05]}  Kg7 {[%clk 0:00:56]} 50. Kg5 {[%clk 0:01:05]}  Kh7 {[%clk 0:00:47]} 51. Ra7+ {[%clk 0:01:05]}  Kh8 {[%clk 0:00:47]} 52. f5 {[%clk 0:01:06]}  Rb8 {[%clk 0:00:32]} 53. Rxa4 {[%clk 0:01:05]}  Rb7 {[%clk 0:00:32]} 54. Kg6 {[%clk 0:01:02]}  Rg7+ {[%clk 0:00:32]} 55. Kf6 {[%clk 0:01:02]}  Rb7 {[%clk 0:00:30]} 56. Ra8+ {[%clk 0:01:00]}  Kh7 {[%clk 0:00:30]} 57. Re8 {[%clk 0:01:01]}  Rb6+ {[%clk 0:00:28]} 58. Kf7 {[%clk 0:01:00]}  Rb5 {[%clk 0:00:25]} 59. f6 {[%clk 0:01:00]}  Rxh5 {[%clk 0:00:24]} 60. Kf8 {[%clk 0:00:55]}  Kg6 {[%clk 0:00:13]} 61. f7 {[%clk 0:00:55]}  Rh8+ {[%clk 0:00:13]} 62. Ke7 {[%clk 0:00:55]}  Rh7 {[%clk 0:00:14]} 63. Rg8+ {[%clk 0:00:54]}  Kf5 {[%clk 0:00:14]} 64. Ke8 {[%clk 0:00:54]}  Ke6 {[%clk 0:00:11]} 65. f8=Q {[%clk 0:00:54]} 1-0


[Site "https://www.chess.com"]